[Event "Titled Tuesday Blitz January 03 Early 2023"]
[White "Indjic, Aleksandar"]
[Black "Agasarov, Benik"]
[WhiteFideId "911925"]
[BlackFideId "13314823"]
[WhiteElo "2618"]
[BlackElo "2235"]
[Result "1-0"]
[Round "08"]
[TimeControl "180+2"]
[Date "2023.01.03"]
[WhiteClock "0:00:20"]
[BlackClock "0:00:10"]

1. e4 {[%clk 0:02:56]}  e5 {[%clk 0:02:58]} 2. Nf3 {[%clk 0:02:56]}  Nf6 {[%clk 0:02:57]} 3. d4 {[%clk 0:02:51]}  Nxe4 {[%clk 0:02:56]} 4. Bd3 {[%clk 0:02:50]}  d5 {[%clk 0:02:55]} 5. Nxe5 {[%clk 0:02:50]}  Nd7 {[%clk 0:02:55]} 6. Nc3 {[%clk 0:02:50]}  Nxc3 {[%clk 0:02:27]} 7. bxc3 {[%clk 0:02:51]}  Nxe5 {[%clk 0:02:27]} 8. dxe5 {[%clk 0:02:50]}  Bc5 {[%clk 0:02:23]} 9. Rb1 {[%clk 0:02:50]}  O-O {[%clk 0:02:23]} 10. O-O {[%clk 0:02:47]}  Qh4 {[%clk 0:02:21]} 11. Qf3 {[%clk 0:02:43]}  Be6 {[%clk 0:02:16]} 12. Be3 {[%clk 0:02:36]}  Bxe3 {[%clk 0:02:14]} 13. Qxe3 {[%clk 0:02:37]}  b6 {[%clk 0:02:12]} 14. f4 {[%clk 0:02:37]}  f5 {[%clk 0:02:09]} 15. Be2 {[%clk 0:02:27]}  Qe7 {[%clk 0:02:07]} 16. Bf3 {[%clk 0:02:27]}  Rfd8 {[%clk 0:02:07]} 17. Rfd1 {[%clk 0:02:22]}  Rab8 {[%clk 0:02:07]} 18. Rb4 {[%clk 0:02:09]}  c6 {[%clk 0:02:04]} 19. Kf2 {[%clk 0:02:06]}  Qc5 {[%clk 0:02:03]} 20. h3 {[%clk 0:01:47]}  Qxe3+ {[%clk 0:02:01]} 21. Kxe3 {[%clk 0:01:47]}  Rd7 {[%clk 0:01:58]} 22. g4 {[%clk 0:01:44]}  g6 {[%clk 0:01:57]} 23. Rbd4 {[%clk 0:01:43]}  Rbd8 {[%clk 0:01:56]} 24. a4 {[%clk 0:01:17]}  Kf7 {[%clk 0:01:50]} 25. g5 {[%clk 0:01:16]}  Ke7 {[%clk 0:01:50]} 26. h4 {[%clk 0:01:14]}  h5 {[%clk 0:01:39]} 27. c4 {[%clk 0:00:57]}  dxc4 {[%clk 0:01:04]} 28. Bxc6 {[%clk 0:00:54]}  Rxd4 {[%clk 0:01:00]} 29. Rxd4 {[%clk 0:00:55]}  Rc8 {[%clk 0:00:54]} 30. Bd5 {[%clk 0:00:54]}  Bxd5 {[%clk 0:00:49]} 31. Rxd5 {[%clk 0:00:53]}  Rc5 {[%clk 0:00:41]} 32. Kd4 {[%clk 0:00:48]}  Rc6 {[%clk 0:00:24]} 33. Kc3 {[%clk 0:00:42]}  a6 {[%clk 0:00:17]} 34. Rd4 {[%clk 0:00:41]}  b5 {[%clk 0:00:17]} 35. axb5 {[%clk 0:00:41]}  axb5 {[%clk 0:00:18]} 36. Kb4 {[%clk 0:00:41]}  Ra6 {[%clk 0:00:14]} 37. Kxb5 {[%clk 0:00:40]}  Ra3 {[%clk 0:00:11]} 38. Rxc4 {[%clk 0:00:34]}  Rh3 {[%clk 0:00:11]} 39. Rd4 {[%clk 0:00:33]}  Rxh4 {[%clk 0:00:11]} 40. c4 {[%clk 0:00:34]}  Rh1 {[%clk 0:00:12]} 41. c5 {[%clk 0:00:34]}  Rb1+ {[%clk 0:00:11]} 42. Kc6 {[%clk 0:00:34]}  h4 {[%clk 0:00:12]} 43. Rd7+ {[%clk 0:00:32]}  Ke6 {[%clk 0:00:08]} 44. Rg7 {[%clk 0:00:31]}  h3 {[%clk 0:00:07]} 45. Rxg6+ {[%clk 0:00:31]}  Ke7 {[%clk 0:00:07]} 46. Rh6 {[%clk 0:00:32]}  Rb3 {[%clk 0:00:07]} 47. Kc7 {[%clk 0:00:31]}  Rf3 {[%clk 0:00:07]} 48. Rh7+ {[%clk 0:00:27]}  Ke6 {[%clk 0:00:07]} 49. Rh6+ {[%clk 0:00:21]}  Ke7 {[%clk 0:00:07]} 50. c6 {[%clk 0:00:21]}  Rxf4 {[%clk 0:00:07]} 51. Rxh3 {[%clk 0:00:21]}  Rg4 {[%clk 0:00:08]} 52. Rh7+ {[%clk 0:00:17]}  Ke6 {[%clk 0:00:08]} 53. Kd8 {[%clk 0:00:17]}  Rxg5 {[%clk 0:00:07]} 54. Re7+ {[%clk 0:00:16]}  Kd5 {[%clk 0:00:06]} 55. c7 {[%clk 0:00:16]}  Rg8+ {[%clk 0:00:03]} 56. Re8 {[%clk 0:00:16]}  Rxe8+ {[%clk 0:00:02]} 57. Kxe8 {[%clk 0:00:16]}  Kxe5 {[%clk 0:00:03]} 58. c8=Q {[%clk 0:00:17]}  f4 {[%clk 0:00:04]} 59. Qc2 {[%clk 0:00:16]}  Kd4 {[%clk 0:00:03]} 60. Qf2+ {[%clk 0:00:17]}  Ke4 {[%clk 0:00:03]} 61. Ke7 {[%clk 0:00:18]}  Kf5 {[%clk 0:00:04]} 62. Kd6 {[%clk 0:00:18]}  Ke4 {[%clk 0:00:04]} 63. Ke6 {[%clk 0:00:19]}  Kd3 {[%clk 0:00:04]} 64. Kf5 {[%clk 0:00:19]}  f3 {[%clk 0:00:04]} 65. Kf4 {[%clk 0:00:20]}  Kc4 {[%clk 0:00:05]} 66. Kxf3 {[%clk 0:00:19]}  Kd5 {[%clk 0:00:06]} 67. Qd2+ {[%clk 0:00:19]}  Ke6 {[%clk 0:00:07]} 68. Qa5 {[%clk 0:00:18]}  Kf7 {[%clk 0:00:08]} 69. Kf4 {[%clk 0:00:19]}  Kg8 {[%clk 0:00:08]} 70. Qc7 {[%clk 0:00:19]}  Kh8 {[%clk 0:00:09]} 71. Kg5 {[%clk 0:00:19]}  Kg8 {[%clk 0:00:10]} 72. Kg6 {[%clk 0:00:20]}  Kf8 {[%clk 0:00:10]} 73. Qd8# {[%clk 0:00:20]} 1-0


[Site "https://www.chess.com"]

[Event "Titled Tuesday Blitz January 03 Early 2023"]
[White "Salimova, Nurgyul"]
[Black "Bryakin, Mikhail"]
[WhiteFideId "2915138"]
[BlackFideId "4165314"]
[WhiteElo "2391"]
[BlackElo "2455"]
[Result "1-0"]
[Round "08"]
[TimeControl "180+2"]
[Date "2023.01.03"]
[WhiteClock "0:00:38"]
[BlackClock "0:00:03"]

1. e4 {[%clk 0:03:00]}  d5 {[%clk 0:02:59]} 2. exd5 {[%clk 0:03:00]}  Qxd5 {[%clk 0:02:59]} 3. Nc3 {[%clk 0:02:59]}  Qe5+ {[%clk 0:03:00]} 4. Be2 {[%clk 0:02:57]}  Bg4 {[%clk 0:03:00]} 5. d4 {[%clk 0:02:56]}  Bxe2 {[%clk 0:03:01]} 6. Ngxe2 {[%clk 0:02:56]}  Qa5 {[%clk 0:03:01]} 7. b4 {[%clk 0:02:51]}  Qh5 {[%clk 0:03:00]} 8. O-O {[%clk 0:02:46]}  Nf6 {[%clk 0:03:00]} 9. Qd3 {[%clk 0:02:42]}  e6 {[%clk 0:02:54]} 10. Ng3 {[%clk 0:02:32]}  Qg6 {[%clk 0:02:37]} 11. Qb5+ {[%clk 0:02:29]}  Nbd7 {[%clk 0:02:37]} 12. d5 {[%clk 0:02:05]}  O-O-O {[%clk 0:02:31]} 13. dxe6 {[%clk 0:02:03]}  fxe6 {[%clk 0:02:31]} 14. Qa5 {[%clk 0:01:55]}  Qxc2 {[%clk 0:02:19]} 15. Bf4 {[%clk 0:01:35]}  e5 {[%clk 0:01:20]} 16. Rac1 {[%clk 0:01:32]}  Bxb4 {[%clk 0:00:41]} 17. Qxb4 {[%clk 0:01:24]}  Qd3 {[%clk 0:00:42]} 18. Be3 {[%clk 0:01:16]}  Nb6 {[%clk 0:00:40]} 19. Bxb6 {[%clk 0:01:05]}  axb6 {[%clk 0:00:41]} 20. Nb5 {[%clk 0:01:03]}  Nd5 {[%clk 0:00:41]} 21. Qa4 {[%clk 0:01:00]}  Qd2 {[%clk 0:00:22]} 22. Qa8+ {[%clk 0:00:49]}  Kd7 {[%clk 0:00:23]} 23. Qxb7 {[%clk 0:00:48]}  Ke6 {[%clk 0:00:18]} 24. Nxc7+ {[%clk 0:00:40]}  Nxc7 {[%clk 0:00:10]} 25. Rxc7 {[%clk 0:00:41]}  Rhf8 {[%clk 0:00:03]} 26. Re7+ {[%clk 0:00:37]}  Kf6 {[%clk 0:00:03]} 27. Ne4+ {[%clk 0:00:38]} 1-0


[Site "https://www.chess.com"]

[Event "Titled Tuesday Blitz January 03 Early 2023"]
[White "Leiva, Gianmarco"]
[Black "Costachi, Mihnea"]
[WhiteFideId "3804399"]
[BlackFideId "1217518"]
[WhiteElo "2392"]
[BlackElo "2476"]
[Result "0-1"]
[Round "08"]
[TimeControl "180+2"]
[Date "2023.01.03"]
[WhiteClock "0:00:01"]
[BlackClock "0:01:08"]

1. d4 {[%clk 0:03:00]}  Nf6 {[%clk 0:02:59]} 2. Nf3 {[%clk 0:03:00]}  d5 {[%clk 0:02:59]} 3. c4 {[%clk 0:03:00]}  c6 {[%clk 0:02:59]} 4. Nc3 {[%clk 0:02:57]}  a6 {[%clk 0:02:59]} 5. a4 {[%clk 0:02:50]}  a5 {[%clk 0:02:58]} 6. Bg5 {[%clk 0:02:48]}  e6 {[%clk 0:02:57]} 7. e3 {[%clk 0:02:46]}  Na6 {[%clk 0:02:57]} 8. Rc1 {[%clk 0:02:43]}  Nb4 {[%clk 0:02:57]} 9. Be2 {[%clk 0:02:43]}  Be7 {[%clk 0:02:57]} 10. O-O {[%clk 0:02:43]}  h6 {[%clk 0:02:57]} 11. Bh4 {[%clk 0:02:43]}  O-O {[%clk 0:02:58]} 12. Ne5 {[%clk 0:02:42]}  Nd7 {[%clk 0:02:57]} 13. Bxe7 {[%clk 0:02:40]}  Qxe7 {[%clk 0:02:58]} 14. f4 {[%clk 0:02:31]}  Nxe5 {[%clk 0:02:54]} 15. fxe5 {[%clk 0:02:31]}  f6 {[%clk 0:02:53]} 16. exf6 {[%clk 0:02:26]}  Rxf6 {[%clk 0:02:54]} 17. Rxf6 {[%clk 0:02:26]}  Qxf6 {[%clk 0:02:55]} 18. Qd2 {[%clk 0:02:25]}  Bd7 {[%clk 0:02:53]} 19. Rf1 {[%clk 0:02:17]}  Qg5 {[%clk 0:02:54]} 20. Rf3 {[%clk 0:02:09]}  Rf8 {[%clk 0:02:51]} 21. Rxf8+ {[%clk 0:02:06]}  Kxf8 {[%clk 0:02:52]} 22. Bf1 {[%clk 0:02:06]}  Be8 {[%clk 0:02:49]} 23. Ne2 {[%clk 0:02:05]}  e5 {[%clk 0:02:42]} 24. dxe5 {[%clk 0:01:52]}  Qxe5 {[%clk 0:02:42]} 25. c5 {[%clk 0:01:52]}  Bg6 {[%clk 0:02:34]} 26. Qd4 {[%clk 0:01:45]}  Qxd4 {[%clk 0:02:22]} 27. Nxd4 {[%clk 0:01:45]}  Bd3 {[%clk 0:02:22]} 28. Nb3 {[%clk 0:01:26]}  Bxf1 {[%clk 0:02:08]} 29. Kxf1 {[%clk 0:01:27]}  Nd3 {[%clk 0:02:06]} 30. Nxa5 {[%clk 0:01:24]}  Nxc5 {[%clk 0:02:00]} 31. b4 {[%clk 0:00:56]}  Nxa4 {[%clk 0:01:59]} 32. Nxb7 {[%clk 0:00:57]}  Ke7 {[%clk 0:02:00]} 33. Ke2 {[%clk 0:00:51]}  Nc3+ {[%clk 0:01:57]} 34. Kd3 {[%clk 0:00:50]}  Na2 {[%clk 0:01:57]} 35. b5 {[%clk 0:00:34]}  cxb5 {[%clk 0:01:57]} 36. Kd4 {[%clk 0:00:33]}  b4 {[%clk 0:01:49]} 37. Nc5 {[%clk 0:00:10]}  Kd6 {[%clk 0:01:43]} 38. g4 {[%clk 0:00:07]}  g5 {[%clk 0:01:43]} 39. e4 {[%clk 0:00:07]}  dxe4 {[%clk 0:01:36]} 40. Nxe4+ {[%clk 0:00:08]}  Ke6 {[%clk 0:01:36]} 41. h3 {[%clk 0:00:06]}  Nc3 {[%clk 0:01:29]} 42. Ng3 {[%clk 0:00:04]}  Kf6 {[%clk 0:01:14]} 43. Nf5 {[%clk 0:00:03]}  h5 {[%clk 0:01:15]} 44. Ng3 {[%clk 0:00:02]}  h4 {[%clk 0:01:12]} 45. Nf5 {[%clk 0:00:02]}  Nd1 {[%clk 0:01:10]} 46. Kc4 {[%clk 0:00:01]}  Nf2 {[%clk 0:01:08]} 0-1


[Site "https://www.chess.com"]

[Event "Titled Tuesday Blitz January 03 Early 2023"]
[White "Pakleza, Zbigniew"]
[Black "Mihajlov, Sebastian"]
[WhiteFideId "1119290"]
[BlackFideId "1512110"]
[WhiteElo "2494"]
[BlackElo "2373"]
[Result "0-1"]
[Round "08"]
[TimeControl "180+2"]
[Date "2023.01.03"]
[WhiteClock "0:00:09"]
[BlackClock "0:01:14"]

1. d4 {[%clk 0:03:00]}  Nf6 {[%clk 0:03:00]} 2. Nf3 {[%clk 0:03:01]}  b6 {[%clk 0:02:57]} 3. Bf4 {[%clk 0:03:00]}  Bb7 {[%clk 0:02:55]} 4. e3 {[%clk 0:03:01]}  g6 {[%clk 0:02:56]} 5. h3 {[%clk 0:03:01]}  Bg7 {[%clk 0:02:56]} 6. Be2 {[%clk 0:03:01]}  O-O {[%clk 0:02:57]} 7. O-O {[%clk 0:03:02]}  d6 {[%clk 0:02:58]} 8. c3 {[%clk 0:03:02]}  Nbd7 {[%clk 0:02:59]} 9. Nbd2 {[%clk 0:03:03]}  c5 {[%clk 0:02:58]} 10. a4 {[%clk 0:03:03]}  Qc7 {[%clk 0:02:56]} 11. a5 {[%clk 0:03:03]}  Bc6 {[%clk 0:02:53]} 12. Bh2 {[%clk 0:02:59]}  b5 {[%clk 0:02:44]} 13. Bd3 {[%clk 0:02:52]}  a6 {[%clk 0:02:41]} 14. e4 {[%clk 0:02:50]}  e5 {[%clk 0:02:33]} 15. Re1 {[%clk 0:02:37]}  Nh5 {[%clk 0:02:27]} 16. d5 {[%clk 0:02:30]}  Bb7 {[%clk 0:02:27]} 17. c4 {[%clk 0:02:31]}  Nf4 {[%clk 0:02:14]} 18. Bf1 {[%clk 0:02:30]}  b4 {[%clk 0:02:11]} 19. g3 {[%clk 0:02:12]}  Nh5 {[%clk 0:02:09]} 20. Nb3 {[%clk 0:02:06]}  Bh6 {[%clk 0:02:06]} 21. Nh4 {[%clk 0:02:03]}  Ng7 {[%clk 0:02:04]} 22. f4 {[%clk 0:01:56]}  f5 {[%clk 0:02:01]} 23. exf5 {[%clk 0:01:47]}  Nxf5 {[%clk 0:02:00]} 24. Nxf5 {[%clk 0:01:47]}  Rxf5 {[%clk 0:01:51]} 25. g4 {[%clk 0:01:32]}  Rxf4 {[%clk 0:01:51]} 26. Bxf4 {[%clk 0:01:32]}  Bxf4 {[%clk 0:01:52]} 27. Nd2 {[%clk 0:01:28]}  Nf6 {[%clk 0:01:45]} 28. Ne4 {[%clk 0:01:24]}  Nxe4 {[%clk 0:01:44]} 29. Rxe4 {[%clk 0:01:25]}  Rf8 {[%clk 0:01:43]} 30. Bd3 {[%clk 0:01:19]}  Qe7 {[%clk 0:01:38]} 31. Qe1 {[%clk 0:01:10]}  Bc8 {[%clk 0:01:34]} 32. Re2 {[%clk 0:01:06]}  Qg5 {[%clk 0:01:29]} 33. Rg2 {[%clk 0:00:42]}  Be3+ {[%clk 0:01:19]} 34. Kh2 {[%clk 0:00:33]}  Rf3 {[%clk 0:01:18]} 35. Qe2 {[%clk 0:00:12]}  Qf4+ {[%clk 0:01:15]} 36. Kh1 {[%clk 0:00:13]}  Rxh3+ {[%clk 0:01:16]} 37. Rh2 {[%clk 0:00:13]}  Bxg4 {[%clk 0:01:17]} 38. Rf1 {[%clk 0:00:09]}  Bxe2 {[%clk 0:01:13]} 39. Rxf4 {[%clk 0:00:09]}  Rxh2+ {[%clk 0:01:14]} 0-1


[Site "https://www.chess.com"]

[Event "Titled Tuesday Blitz January 03 Early 2023"]
[White "Baskakov, Egor"]
[Black "Janaszak, Dawid"]
[WhiteFideId "24197866"]
[BlackFideId "1119206"]
[WhiteElo "2215"]
[BlackElo "2316"]
[Result "1-0"]
[Round "08"]
[TimeControl "180+2"]
[Date "2023.01.03"]
[WhiteClock "0:00:18"]
[BlackClock "0:00:05"]

1. e4 {[%clk 0:03:00]}  c5 {[%clk 0:02:49]} 2. Nf3 {[%clk 0:03:00]}  Nc6 {[%clk 0:02:48]} 3. Nc3 {[%clk 0:03:00]}  g6 {[%clk 0:02:48]} 4. d4 {[%clk 0:03:00]}  cxd4 {[%clk 0:02:49]} 5. Nxd4 {[%clk 0:03:00]}  Bg7 {[%clk 0:02:49]} 6. Nde2 {[%clk 0:03:01]}  Nf6 {[%clk 0:02:49]} 7. g3 {[%clk 0:03:01]}  b5 {[%clk 0:02:49]} 8. a3 {[%clk 0:03:01]}  Rb8 {[%clk 0:02:49]} 9. Bg2 {[%clk 0:03:01]}  a5 {[%clk 0:02:49]} 10. O-O {[%clk 0:03:00]}  O-O {[%clk 0:02:47]} 11. h3 {[%clk 0:03:00]}  b4 {[%clk 0:02:41]} 12. axb4 {[%clk 0:03:01]}  axb4 {[%clk 0:02:42]} 13. Nd5 {[%clk 0:03:01]}  e6 {[%clk 0:02:42]} 14. Nxf6+ {[%clk 0:03:01]}  Qxf6 {[%clk 0:02:38]} 15. Ra2 {[%clk 0:02:57]}  d5 {[%clk 0:02:34]} 16. exd5 {[%clk 0:02:57]}  exd5 {[%clk 0:02:34]} 17. Nf4 {[%clk 0:02:57]}  b3 {[%clk 0:02:17]} 18. cxb3 {[%clk 0:02:56]}  Nb4 {[%clk 0:02:12]} 19. Ra7 {[%clk 0:02:27]}  Qb6 {[%clk 0:02:02]} 20. Re7 {[%clk 0:02:13]}  Bf5 {[%clk 0:01:40]} 21. Bd2 {[%clk 0:01:46]}  d4 {[%clk 0:01:19]} 22. g4 {[%clk 0:01:33]}  Bc2 {[%clk 0:01:18]} 23. Qf3 {[%clk 0:01:33]}  d3 {[%clk 0:01:16]} 24. Bc3 {[%clk 0:01:21]}  Bxc3 {[%clk 0:00:57]} 25. bxc3 {[%clk 0:01:22]}  Qf6 {[%clk 0:00:58]} 26. Rc7 {[%clk 0:01:10]}  Qe5 {[%clk 0:00:49]} 27. Rc4 {[%clk 0:01:03]}  Na2 {[%clk 0:00:26]} 28. Nxd3 {[%clk 0:00:56]}  Bxd3 {[%clk 0:00:26]} 29. Qxd3 {[%clk 0:00:55]}  Rxb3 {[%clk 0:00:27]} 30. Qd4 {[%clk 0:00:46]}  Qe7 {[%clk 0:00:19]} 31. Qd2 {[%clk 0:00:33]}  Qa3 {[%clk 0:00:16]} 32. Rc7 {[%clk 0:00:29]}  Rxc3 {[%clk 0:00:14]} 33. Rd7 {[%clk 0:00:24]}  Rb3 {[%clk 0:00:06]} 34. Bd5 {[%clk 0:00:21]}  Rb2 {[%clk 0:00:07]} 35. Qf4 {[%clk 0:00:21]}  Nc3 {[%clk 0:00:05]} 36. Bxf7+ {[%clk 0:00:18]} 1-0


[Site "https://www.chess.com"]

[Event "Titled Tuesday Blitz January 03 Early 2023"]
[White "Sadykov, Ramil"]
[Black "Kobalia, Mikhail"]
[WhiteFideId "24113590"]
[BlackFideId "4119150"]
[WhiteElo "2345"]
[BlackElo "2578"]
[Result "1/2-1/2"]
[Round "08"]
[TimeControl "180+2"]
[Date "2023.01.03"]
[WhiteClock "0:00:13"]
[BlackClock "0:00:20"]

1. e4 {[%clk 0:03:00]}  c5 {[%clk 0:02:58]} 2. Nf3 {[%clk 0:02:57]}  e6 {[%clk 0:02:58]} 3. d4 {[%clk 0:02:46]}  cxd4 {[%clk 0:02:58]} 4. Nxd4 {[%clk 0:02:46]}  Nc6 {[%clk 0:02:58]} 5. Nc3 {[%clk 0:02:45]}  a6 {[%clk 0:02:58]} 6. Nxc6 {[%clk 0:02:43]}  bxc6 {[%clk 0:02:58]} 7. Qf3 {[%clk 0:02:43]}  d5 {[%clk 0:02:58]} 8. Qg3 {[%clk 0:02:35]}  Nf6 {[%clk 0:02:57]} 9. Bd3 {[%clk 0:02:26]}  a5 {[%clk 0:02:54]} 10. e5 {[%clk 0:02:19]}  Nd7 {[%clk 0:02:53]} 11. O-O {[%clk 0:02:05]}  a4 {[%clk 0:02:52]} 12. f4 {[%clk 0:01:57]}  g6 {[%clk 0:02:51]} 13. Ne2 {[%clk 0:01:46]}  Nc5 {[%clk 0:02:48]} 14. Kh1 {[%clk 0:01:45]}  Ba6 {[%clk 0:02:45]} 15. Bxa6 {[%clk 0:01:44]}  Rxa6 {[%clk 0:02:44]} 16. Be3 {[%clk 0:01:40]}  Ne4 {[%clk 0:02:43]} 17. Qf3 {[%clk 0:01:41]}  Qa5 {[%clk 0:02:35]} 18. Rad1 {[%clk 0:01:39]}  Bc5 {[%clk 0:02:34]} 19. Nd4 {[%clk 0:01:29]}  O-O {[%clk 0:02:33]} 20. g4 {[%clk 0:01:11]}  Bxd4 {[%clk 0:02:32]} 21. Rxd4 {[%clk 0:01:12]}  c5 {[%clk 0:02:31]} 22. Rdd1 {[%clk 0:01:06]}  Qc7 {[%clk 0:02:28]} 23. c4 {[%clk 0:01:04]}  Qb7 {[%clk 0:02:22]} 24. f5 {[%clk 0:00:58]}  d4 {[%clk 0:02:07]} 25. Bh6 {[%clk 0:00:54]}  Rb8 {[%clk 0:01:58]} 26. fxg6 {[%clk 0:00:46]}  hxg6 {[%clk 0:01:56]} 27. Rde1 {[%clk 0:00:46]}  a3 {[%clk 0:01:34]} 28. Rxe4 {[%clk 0:00:26]}  axb2 {[%clk 0:01:33]} 29. Rb1 {[%clk 0:00:26]}  Ra3 {[%clk 0:01:30]} 30. Qg2 {[%clk 0:00:19]}  Rxa2 {[%clk 0:01:29]} 31. Ree1 {[%clk 0:00:15]}  Ra4 {[%clk 0:01:19]} 32. Qxb7 {[%clk 0:00:13]}  Rxb7 {[%clk 0:01:20]} 33. Re2 {[%clk 0:00:13]}  Ra1 {[%clk 0:01:13]} 34. Ree1 {[%clk 0:00:13]}  Ra4 {[%clk 0:01:04]} 35. Re2 {[%clk 0:00:12]}  Ra1 {[%clk 0:00:28]} 36. Ree1 {[%clk 0:00:13]}  Ra4 {[%clk 0:00:20]} 1/2-1/2


[Site "https://www.chess.com"]

[Event "Titled Tuesday Blitz January 03 Early 2023"]
[White "Fiorito, Francisco"]
[Black "Santos Ruiz, Miguel"]
[WhiteFideId "180165"]
[BlackFideId "22291482"]
[WhiteElo "2305"]
[BlackElo "2590"]
[Result "0-1"]
[Round "08"]
[TimeControl "180+2"]
[Date "2023.01.03"]
[WhiteClock "0:00:17"]
[BlackClock "0:00:58"]

1. Nf3 {[%clk 0:03:00]}  d5 {[%clk 0:03:00]} 2. g3 {[%clk 0:03:00]}  c5 {[%clk 0:02:56]} 3. Bg2 {[%clk 0:03:00]}  Nf6 {[%clk 0:02:56]} 4. O-O {[%clk 0:03:00]}  h6 {[%clk 0:02:56]} 5. c4 {[%clk 0:02:44]}  d4 {[%clk 0:02:54]} 6. b4 {[%clk 0:02:43]}  cxb4 {[%clk 0:02:45]} 7. a3 {[%clk 0:02:43]}  bxa3 {[%clk 0:02:42]} 8. Bxa3 {[%clk 0:02:44]}  Nc6 {[%clk 0:02:42]} 9. d3 {[%clk 0:02:43]}  e5 {[%clk 0:02:39]} 10. Bxf8 {[%clk 0:02:42]}  Kxf8 {[%clk 0:02:40]} 11. Nbd2 {[%clk 0:02:41]}  g6 {[%clk 0:02:40]} 12. Qa4 {[%clk 0:02:36]}  Kg7 {[%clk 0:02:39]} 13. Rfb1 {[%clk 0:02:36]}  Rb8 {[%clk 0:02:27]} 14. Qa3 {[%clk 0:02:16]}  Qc7 {[%clk 0:02:20]} 15. Ne1 {[%clk 0:02:15]}  h5 {[%clk 0:02:16]} 16. Bxc6 {[%clk 0:01:54]}  bxc6 {[%clk 0:01:56]} 17. Qxa7 {[%clk 0:01:41]}  Rxb1 {[%clk 0:01:50]} 18. Nxb1 {[%clk 0:01:42]}  Qd6 {[%clk 0:01:44]} 19. h4 {[%clk 0:01:10]}  e4 {[%clk 0:01:32]} 20. dxe4 {[%clk 0:01:10]}  Nxe4 {[%clk 0:01:32]} 21. Nf3 {[%clk 0:01:10]}  c5 {[%clk 0:01:24]} 22. Kg2 {[%clk 0:00:41]}  Re8 {[%clk 0:01:20]} 23. Ra2 {[%clk 0:00:37]}  Bg4 {[%clk 0:01:10]} 24. Nbd2 {[%clk 0:00:33]}  Nxd2 {[%clk 0:01:04]} 25. Rxd2 {[%clk 0:00:32]}  Qc6 {[%clk 0:01:01]} 26. Qa2 {[%clk 0:00:23]}  Rxe2 {[%clk 0:01:00]} 27. Rxe2 {[%clk 0:00:19]}  Qxf3+ {[%clk 0:00:59]} 28. Kf1 {[%clk 0:00:17]}  Qh1# {[%clk 0:00:58]} 0-1


[Site "https://www.chess.com"]

[Event "Titled Tuesday Blitz January 03 Early 2023"]
[White "Krivonosov, Oleg"]
[Black "Saravana, Krishnan P."]
[WhiteFideId "11600349"]
[BlackFideId "5018382"]
[WhiteElo "2359"]
[BlackElo "2284"]
[Result "0-1"]
[Round "08"]
[TimeControl "180+2"]
[Date "2023.01.03"]
[WhiteClock "0:00:01"]
[BlackClock "0:00:15"]

1. Nf3 {[%clk 0:03:00]}  Nf6 {[%clk 0:02:39]} 2. c4 {[%clk 0:03:00]}  Nc6 {[%clk 0:02:38]} 3. d4 {[%clk 0:02:59]}  e6 {[%clk 0:02:38]} 4. g3 {[%clk 0:02:58]}  Bb4+ {[%clk 0:02:38]} 5. Bd2 {[%clk 0:02:57]}  Qe7 {[%clk 0:02:38]} 6. Bg2 {[%clk 0:02:56]}  a5 {[%clk 0:02:37]} 7. O-O {[%clk 0:02:55]}  Bxd2 {[%clk 0:02:36]} 8. Nbxd2 {[%clk 0:02:50]}  d6 {[%clk 0:02:36]} 9. Qc2 {[%clk 0:02:47]}  O-O {[%clk 0:02:36]} 10. e4 {[%clk 0:02:43]}  e5 {[%clk 0:02:35]} 11. d5 {[%clk 0:02:43]}  Nb4 {[%clk 0:02:35]} 12. Qc3 {[%clk 0:02:39]}  Bg4 {[%clk 0:02:01]} 13. a3 {[%clk 0:02:36]}  Na6 {[%clk 0:02:01]} 14. b4 {[%clk 0:02:35]}  Rfc8 {[%clk 0:01:51]} 15. h3 {[%clk 0:02:25]}  Bh5 {[%clk 0:01:46]} 16. Nh4 {[%clk 0:02:19]}  Bg6 {[%clk 0:01:45]} 17. Nxg6 {[%clk 0:02:15]}  hxg6 {[%clk 0:01:45]} 18. h4 {[%clk 0:02:14]}  c6 {[%clk 0:01:39]} 19. dxc6 {[%clk 0:02:08]}  bxc6 {[%clk 0:01:37]} 20. Nb3 {[%clk 0:01:52]}  a4 {[%clk 0:01:29]} 21. Nd2 {[%clk 0:01:43]}  Nc7 {[%clk 0:01:27]} 22. Bh3 {[%clk 0:01:40]}  Ne6 {[%clk 0:01:24]} 23. Qd3 {[%clk 0:01:36]}  Rd8 {[%clk 0:01:21]} 24. Bxe6 {[%clk 0:01:35]}  Qxe6 {[%clk 0:01:19]} 25. Rfe1 {[%clk 0:01:31]}  d5 {[%clk 0:01:17]} 26. exd5 {[%clk 0:01:28]}  cxd5 {[%clk 0:01:17]} 27. c5 {[%clk 0:01:28]}  e4 {[%clk 0:01:16]} 28. Qe2 {[%clk 0:01:13]}  Re8 {[%clk 0:01:11]} 29. f3 {[%clk 0:00:57]}  e3 {[%clk 0:01:03]} 30. Nf1 {[%clk 0:00:56]}  d4 {[%clk 0:01:03]} 31. Rad1 {[%clk 0:00:56]}  Rad8 {[%clk 0:01:02]} 32. Nh2 {[%clk 0:00:43]}  Nh5 {[%clk 0:00:46]} 33. Kg2 {[%clk 0:00:40]}  Qe5 {[%clk 0:00:42]} 34. Nf1 {[%clk 0:00:37]}  f5 {[%clk 0:00:37]} 35. Qc4+ {[%clk 0:00:28]}  Kh7 {[%clk 0:00:36]} 36. Re2 {[%clk 0:00:23]}  f4 {[%clk 0:00:30]} 37. g4 {[%clk 0:00:21]}  Nf6 {[%clk 0:00:30]} 38. Nd2 {[%clk 0:00:13]}  g5 {[%clk 0:00:26]} 39. h5 {[%clk 0:00:11]}  g6 {[%clk 0:00:25]} 40. hxg6+ {[%clk 0:00:10]}  Kxg6 {[%clk 0:00:24]} 41. c6 {[%clk 0:00:11]}  Rh8 {[%clk 0:00:21]} 42. c7 {[%clk 0:00:07]}  Rc8 {[%clk 0:00:21]} 43. Rc1 {[%clk 0:00:05]}  Qe7 {[%clk 0:00:18]} 44. Qxd4 {[%clk 0:00:03]}  Qh7 {[%clk 0:00:18]} 45. Qd3+ {[%clk 0:00:03]}  Kg7 {[%clk 0:00:18]} 46. Qxh7+ {[%clk 0:00:03]}  Rxh7 {[%clk 0:00:18]} 47. Nf1 {[%clk 0:00:03]}  Kg6 {[%clk 0:00:17]} 48. Rec2 {[%clk 0:00:02]}  Rd7 {[%clk 0:00:17]} 49. b5 {[%clk 0:00:02]}  Nd5 {[%clk 0:00:17]} 50. Rc5 {[%clk 0:00:01]}  Rcxc7 {[%clk 0:00:15]} 0-1


[Site "https://www.chess.com"]